Cogmind - Beta 16 @@@ ROGUE MODE // 2026.01.19 @ 22:16:18 Player: qwewqetest Result: Destroyed by SKR-2 with Enhanced Force Lance Performance ------------- Evolutions (8) 4000 Regions Visited (26) 5200 Robots Destroyed (263) 1315 Value Destroyed (13240) 13240 Prototype IDs (35) 700 Alien Tech Used (4) 800 Bonus (5308) 5308 TOTAL SCORE: 30563 Bonus ------- High Alert Combat Kills 1248 Follower Combat Kills 3852 Registered with UFD 300 Met Optimus in HQ 500 Built Enhanced Grunts 300 A7 Reached Mainframe 300 Met R17 at Cetus 500 Friendly Fire -1692 Cogmind --------- Core Integrity 0/1450 Matter 275/300 Energy 93/100 System Corruption 27% Temperature Cool (0) Movement Core (50) Location -2/Protoforge Parts ------- > --- POWER (2) -------- (None) > --- PROPULSION (5) --- (None) > --- UTILITY (12) ----- Improved System Shield > --- WEAPON (4) ------- (None) > --- INVENTORY (5) ---- Advanced Focal Shield Enhanced Nova Cannon Core Cannon Peak State ------------ > --- POWER ------------ Vortex Chain Reactor > --- PROPULSION ------- Biometal Leg Biometal Leg Biometal Leg Heavy Shield Leg > --- UTILITY ---------- Experimental Heat Sink Coolant Network Medium Storage Unit 0b10 Decoder Chip [Generic] Improved Targeting Computer Advanced Phase Shifter Experimental Weapon Shielding Centrium Heavy Armor Plating Thermal Barrier Experimental EM Shield > --- WEAPON ----------- Enhanced Nova Cannon Hypervelocity Railgun Enhanced Hardcell Cannon Graviton Cannon > --- INVENTORY -------- Vortex Chain Reactor Advanced Coolant Injector Advanced Focal Shield Experimental Force Field System Shield Improved System Shield Core Cannon [Rating: 192] Favorites ----------- Power Light Antimatter Reactor Engine Cooled Ion Engine Power Core Reinforced Fission Core Reactor Light Antimatter Reactor Propulsion Titanium Leg Treads Light Treads Leg Titanium Leg Hover Unit Aerolev Unit Flight Unit VTOL Module Utility Medium Storage Unit Device Advanced Heat Sink Storage Medium Storage Unit Processor 0b10 Decoder Chip [Generic] Hackware System Shield Protection Centrium Medium Armor Plating Weapon Improved Light Cannon Energy Gun Field Laser Energy Cannon EM Pulse Cannon Ballistic Gun Helical Railgun Ballistic Cannon Improved Light Cannon Launcher Advanced EMP Blaster Impact Weapon Heavy Flail Slashing Weapon Makeshift Sword Build | -11 -10 -10 -9 -9 -8 -8 -8 -8 -6 -6 -6 -6 -5 -5 -5 -4 -4 -4 -4 -4 -4 -4 -3 -2 -2 -2 ------- Run | Yrd Mat Min Mat Min Mat Sto Rec Scr Fac Was Fac Low Fac Upp Upp Fac Was Fac Ext Cet Arc Hub Res Res Qua Frg Slots Evolved 16 | . . . 2 . 2 . . . 4 . . . 2 . . 2 . . . . . . 2 2 . . Power 1 | . . . . . . . . . 1 . . . . . . . . . . . . . . . . . Propulsion 3 | . . . 1 . . . . . 1 . . . 1 . . . . . . . . . . . . . Utility 10 | . . . 1 . . . . . 2 . . . 1 . . 2 . . . . . . 2 2 . . Weapon 2 | . . . . . 2 . . . . . . . . . . . . . . . . . . . . . Parts Attached 318 | . 1 5 18 3 1 12 2 3 33 4 8 2 28 18 4 6 1 7 39 6 2 6 30 18 47 14 Power 40 | . . . 4 . . 1 . . 7 . 2 . 3 3 . . . 1 5 1 . . 4 2 6 1 Engine 10 | . . . 4 . . 1 . . 2 . 1 . 1 1 . . . . . . . . . . . . Core 12 | . . . . . . . . . 4 . 1 . 2 2 . . . 1 2 . . . . . . . Reactor 18 | . . . . . . . . . 1 . . . . . . . . . 3 1 . . 4 2 6 1 Propulsion 89 | . . 1 4 2 . 6 . . 8 . 1 . 6 8 . 2 . . 18 . . 6 11 3 9 4 Treads 1 | . . . 1 . . . . . . . . . . . . . . . . . . . . . . . Leg 72 | . . 1 3 2 . 5 . . 2 . 1 . 6 2 . . . . 17 . . 6 11 3 9 4 Wheel . | . . . . . . . . . . . . . . . . . . . . . . . . . . . Hover 7 | . . . . . . 1 . . 6 . . . . . . . . . . . . . . . . . Flight 9 | . . . . . . . . . . . . . . 6 . 2 . . 1 . . . . . . . Utility 100 | . 1 1 2 1 . 2 1 1 8 2 3 2 8 1 4 4 1 5 6 2 1 . 9 8 20 7 Device 51 | . . 1 1 1 . 1 1 1 4 2 1 1 3 . . 1 . 3 4 . 1 . 3 7 12 3 Storage 9 | . . . . . . 1 . . 2 . . . 1 . . . . . . . . . 1 . 4 . Processor 17 | . . . 1 . . . . . 2 . 1 . 2 1 3 2 1 2 . . . . 1 1 . . Hackware 2 | . . . . . . . . . . . . . . . . 1 . . . . . . . . . 1 Protection 21 | . 1 . . . . . . . . . 1 1 2 . 1 . . . 2 2 . . 4 . 4 3 Artifact . | . . . . . . . . . . . . . . . . . . . . . . . . . . . Weapon 89 | . . 3 8 . 1 3 1 2 10 2 2 . 11 6 . . . 1 10 3 1 . 6 5 12 2 Energy Gun 33 | . . 2 3 . . 2 1 . 2 . 1 . 4 2 . . . 1 6 1 . . 2 1 4 1 Energy Cannon 8 | . . . . . . 1 . 1 . . 1 . 1 . . . . . . . . . . 1 2 1 Ballistic Gun 28 | . . 1 2 . . . . . 8 2 . . 1 3 . . . . 2 2 1 . 4 . 2 . Ballistic Cannon 15 | . . . 3 . 1 . . . . . . . 3 . . . . . 2 . . . . 3 3 . Launcher 2 | . . . . . . . . 1 . . . . 1 . . . . . . . . . . . . . Special Weapon . | . . . . . . . . . . . . . . . . . . . . . . . . . . . Impact Weapon 2 | . . . . . . . . . . . . . 1 . . . . . . . . . . . 1 . Slashing Weapon 1 | . . . . . . . . . . . . . . 1 . . . . . . . . . . . . Piercing Weapon . | . . . . . . . . . . . . . . . . . . . . . . . . . . . Special Melee Weapon . | . . . . . . . . . . . . . . . . . . . . . . . . . . . Unidentified Prototypes 39 | . . . 2 . . 5 . 1 2 . 1 . 1 . . . 1 . . 3 . 1 3 2 13 4 Corrupted Parts 19 | . . . . . . . . . 2 1 1 . 2 1 . . . . 4 1 . 1 . . 6 . System Corruption 75 | . . . . . . . . . 9 2 7 . 3 1 . . . . 19 6 . 8 . . 20 . Parts Lost 92 | . . . 4 1 . . 1 . 7 . 2 . 24 2 . . . 7 1 . . . 7 11 15 10 Power 18 | . . . 1 . . . . . 3 . 1 . 4 . . . . 2 . . . . 3 . 2 2 Propulsion 19 | . . . 1 . . . . . . . . . 6 2 . . . 1 . . . . . 3 3 3 Utility 28 | . . . 1 1 . . . . 3 . . . 4 . . . . 2 . . . . 3 3 6 5 Weapon 27 | . . . 1 . . . 1 . 1 . 1 . 10 . . . . 2 1 . . . 1 5 4 . Highest Loss Streak 11 | . . . 4 1 . . 1 . 2 . 1 . 11 1 . . . 3 1 . . . 2 7 9 6 To Critical Strikes 1 | . . . . . . . . . . . . . 1 . . . . . . . . . . . . . Average Backups 7 | 6 7 8 7 8 6 9 10 10 8 6 6 6 5 2 2 4 7 6 6 6 7 7 7 6 6 7 Power . | 1 1 1 1 3 3 1 1 1 1 . . . . . . . 1 . . . . . . . . . Propulsion 2 | 4 5 6 4 3 3 3 4 5 1 1 1 . . . . 1 4 3 3 . . . 1 1 1 . Utility 1 | . . . . . . . . . 1 . 1 2 2 1 2 1 1 1 2 3 4 4 2 3 2 5 Weapon 2 | 1 1 1 1 2 . 4 4 4 4 4 3 3 1 . . . 1 . . 1 3 3 2 1 1 1 Tool/Special . | . . . . . . . . . . . . . . . . . . . . . . . . . . . Unused Backups 30 | . . 4 2 . . 5 . . 1 1 . 1 2 1 . . . 1 4 . . . 2 . 5 1 Power 6 | . . . 1 . . 2 . . . . . 1 . . . . . . . . . . . . 2 . Propulsion 10 | . . 2 . . . . . . . 1 . . . . . . . . 4 . . . . . 3 . Utility 4 | . . . . . . 2 . . . . . . . 1 . . . . . . . . . . . 1 Weapon 10 | . . 2 1 . . 1 . . 1 . . . 2 . . . . 1 . . . . 2 . . . Tool/Special . | . . . . . . . . . . . . . . . . . . . . . . . . . . . Average Slot Usage (%) 88 | . 98 100 93 99 98 100 99 99 88 80 85 86 80 31 73 79 84 78 93 96 99 100 94 87 81 76 Engine 3 | . 14 14 11 11 9 9 9 9 . . 3 6 5 . . . . . . . . . . . . . Core 2 | . . . . . . . . . 9 6 3 6 3 4 11 7 5 6 2 5 5 5 . 4 2 . Reactor 2 | . . . . . . . . . . 4 4 . . . . . . . 7 5 5 5 7 3 4 3 Leg 19 | . 28 28 24 33 27 27 27 27 1 11 13 13 17 3 . . . . 22 26 26 26 23 20 20 18 Hover 1 | . . . . . . . . . 19 1 . . . . . . . . . . . . . . . . Flight 1 | . . . . . . . . . . . . . . 9 29 18 15 15 2 . . . . . . . Device 11 | . . 1 10 10 9 9 9 9 14 13 13 13 13 . . 3 4 3 12 15 15 15 14 14 12 16 Storage 6 | . 14 14 11 11 9 9 9 9 6 13 7 6 5 . . 2 5 5 5 5 5 5 4 4 6 3 Processor 10 | . . . 9 11 9 9 9 9 7 6 5 6 8 . 8 22 26 27 18 10 10 10 12 13 13 8 Protection 3 | . 12 13 . . . . . . . . 5 6 1 . . . . . 3 6 10 10 11 9 3 7 Energy Gun 7 | . . 9 7 . . 9 18 18 11 . 2 6 6 1 . . . 2 8 7 5 5 2 2 9 . Energy Cannon 1 | . . . . . . . . 8 . . 1 . 1 . . . . . . . . . . 1 . 4 Ballistic Gun 8 | . 28 19 9 . . . . . 14 21 21 20 7 5 17 15 15 9 7 7 11 15 16 7 . 3 Ballistic Cannon 5 | . . . 4 22 35 26 17 6 . . . . 4 . . . . . 1 5 2 . . 4 4 7 Peak Build Rating 192 | 6 7 10 14 14 18 30 30 35 76 76 72 71 91 55 49 80 83 86 105 122 123 125 154 168 189 192 Average Rating 84 | 6 6 7 12 13 17 26 28 32 57 65 69 68 78 18 38 71 80 76 95 113 122 124 145 144 142 178 On Entrance 62 | 6 6 7 10 14 14 18 30 27 35 76 70 68 68 2 30 49 80 80 61 105 122 123 125 140 125 183 Avg Prop Armor Cover (%) 5 | . . . 9 . . . . . . . . . 4 2 . . . . . . . . . 1 3 11 Naked Turns 67 | . . . . . . . . . . . . . 16 48 . . . . . . . . . . . 3 Heaviest Build 146 | 12 15 18 22 22 30 35 34 37 54 54 59 54 87 29 24 30 26 30 91 101 95 92 114 146 134 136 Greatest Support 146 | 20 20 20 30 30 30 51 51 51 72 72 72 72 99 30 20 30 30 30 108 108 108 116 146 146 140 144 Greatest Overweight (x) 1 | . . . 1 . . . . . 1 . 1 . 1 . 1 . . . 1 . . . . 1 . 1 Average Overweight (x) . | . . . . . . . . . . . . . . . . . . . . . . . . . . . Largest Inventory Capacity 10 | 8 8 8 8 8 8 10 10 10 10 10 10 10 10 10 5 10 10 10 10 10 10 10 10 10 10 10 Average Capacity 9 | 8 8 8 8 8 8 9 10 10 10 10 10 10 9 5 5 8 10 10 10 10 10 10 10 10 9 9 Most Carried 10 | 6 8 8 8 8 8 10 10 10 10 10 10 10 10 6 5 10 10 10 10 10 10 10 10 10 10 10 Average Carried 9 | 6 7 8 7 7 6 9 9 10 9 9 9 9 8 5 5 7 10 9 9 9 10 10 9 8 9 9 Final Capacity 10 | 8 8 8 8 8 8 10 10 10 10 10 10 10 5 5 5 10 10 10 10 10 10 10 10 10 10 5 Final Carried 10 | 6 8 8 8 8 8 10 10 10 10 9 10 10 5 5 5 10 10 7 10 10 10 10 10 8 10 4 Class Distribution -------------------- 23% | Gunner 23% | Scavenger-Tank 20% | Scavenger-Gunner 15% | Scavenger-Skirmisher 4% | Mutant 4% | Scavenger-Mutant Dominant Class ---------------- Mutant | -10/Materials Mutant | -10/Mines Scavenger-Mutant | -9/Materials Scavenger-Mutant | -9/Mines Scavenger-Gunner | -8/Materials Gunner | -8/Storage Gunner | -8/Recycling Gunner | -8/Scraptown Gunner | -6/Factory Scavenger-Gunner | -6/Waste Scavenger-Gunner | -6/Factory Scavenger-Gunner | -6/Lower Caves Scavenger-Gunner | -5/Factory Mutant | -5/Upper Caves Scavenger-Sprinter | -5/Upper Caves Derelict-Sprinter | -4/Factory Derelict-Sprinter | -4/Waste Derelict-Sprinter | -4/Factory Scavenger-Skirmisher | -4/Extension Scavenger-Skirmisher | -4/Cetus Scavenger-Tank | -4/Archives Scavenger-Tank | -4/Hub_04(d) Scavenger-Tank | -3/Research Scavenger-Tank | -2/Research Scavenger-Skirmisher | -2/Quarantine Scavenger-Tank | -2/Protoforge Resources | -11 -10 -10 -9 -9 -8 -8 -8 -8 -6 -6 -6 -6 -5 -5 -5 -4 -4 -4 -4 -4 -4 -4 -3 -2 -2 -2 ----------- Run | Yrd Mat Min Mat Min Mat Sto Rec Scr Fac Was Fac Low Fac Upp Upp Fac Was Fac Ext Cet Arc Hub Res Res Qua Frg Matter Collected 11587 | 200 10 83 357 57 . 694 214 30 1277 142 588 166 830 333 47 . . 263 971 293 174 276 1217 1043 1290 1032 Remotely . | . . . . . . . . . . . . . . . . . . . . . . . . . . . Salvage Created 14617 | . . 180 626 127 . 969 734 . 1793 . 953 206 1623 20 56 . . 193 906 104 166 245 1401 1306 1740 1269 Parts 602 | . . 7 39 8 . 71 35 . 83 . 46 2 50 1 1 . . 7 34 2 8 7 52 58 46 45 Haulers Intercepted 11 | . . . 1 . . 6 1 . 1 . . . 1 . . . . 1 . . . . . . . . Recyclers Shooed 18 | . . 1 . . . 1 1 . 3 . 2 . 5 . . . . . 5 . . . . . . . Parts Field Recycled . | . . . . . . . . . . . . . . . . . . . . . . . . . . . Retrieved Matter . | . . . . . . . . . . . . . . . . . . . . . . . . . . . Parts Self-Destructed 14 | . . . . . . . . . . . . . . 13 1 . . . . . . . . . . . Prevented . | . . . . . . . . . . . . . . . . . . . . . . . . . . . Parts Restored . | . . . . . . . . . . . . . . . . . . . . . . . . . . . Kills | -11 -10 -10 -9 -9 -8 -8 -8 -8 -6 -6 -6 -6 -5 -5 -5 -4 -4 -4 -4 -4 -4 -4 -3 -2 -2 -2 ------- Run | Yrd Mat Min Mat Min Mat Sto Rec Scr Fac Was Fac Low Fac Upp Upp Fac Was Fac Ext Cet Arc Hub Res Res Qua Frg Combat Hostiles Destroyed 197 | . . 4 13 3 . 15 12 . 26 . 7 . 20 1 . . . 2 12 1 2 3 15 22 20 19 Melee 1 | . . . . . . . . . . . . . . 1 . . . . . . . . . . . . Guns 117 | . . 4 13 . . 5 6 . 24 . 6 . 9 . . . . 2 7 1 2 3 15 10 7 3 Cannons 65 | . . . . 3 . 10 6 . . . . . 7 . . . . . 5 . . . . 10 10 14 AOE 5 | . . . . . . . . . 2 . 1 . 2 . . . . . . . . . . . . . Classes Destroyed 23 | . . 1 5 1 . 3 3 . 2 . . . 2 . . . . . . . . . 2 1 2 1 Worker 13 | . . . . . . 2 . . 5 . 4 . 1 . . . . . . . . . . . 1 . Builder 7 | . . . . . . 2 . . 3 . 1 . . . . . . . 1 . . . . . . . Tunneler 2 | . . . . . . . . . . . . . 2 . . . . . . . . . . . . . Hauler 11 | . . . 1 . . 6 1 . 1 . . . 1 . . . . 1 . . . . . . . . Recycler 16 | . . . 1 . . 1 3 . 2 . 3 . 3 . . . . . . . . . 2 . 1 . Mechanic 1 | . . . . . . . . . . . . . 1 . . . . . . . . . . . . . Operator 4 | . . . . . . 1 . . . . 1 . . . . . . . . . . . . . . 2 Drone 3 | . . . . . . . . . . . . . . . . . . . . . . . . . . 3 Watcher 7 | . . . 1 . . . . . 1 . 1 . . . . . . . 1 1 . . 1 . 1 . Swarmer 28 | . . . 4 . . 4 1 . 9 . 1 . . 1 . . . . 1 . . . 2 5 . . Saboteur 1 | . . . . . . . . . . . . . . . . . . . . . . . . 1 . . Grunt 67 | . . 4 6 2 . 4 . . 8 . 3 . 12 . . . . . 6 . . 1 6 3 4 8 Brawler 6 | . . . . 1 . . 2 . . . . . 1 . . . . . . . . . . 1 . 1 Duelist 3 | . . . . . . . 1 . . . . . . . . . . . 1 . . . . 1 . . Protector 1 | . . . . . . . 1 . . . . . . . . . . . . . . . . . . . Sentry 33 | . . . 3 . . 8 6 . . . 1 . 3 . . . . . 3 . 2 2 3 1 . 1 Demolisher 1 | . . . . . . . 1 . . . . . . . . . . . . . . . . . . . Specialist 3 | . . . . . . . . . . . . . . . . . . . . . . . . . 3 . Hunter 17 | . . . . . . . . . 6 . . . 2 . . . . . 1 . . . 2 4 2 . Programmer 25 | . . . . . . . . . 3 . 2 . 2 . . . . 2 . . . . . 6 10 . Cetus Guard 1 | . . . . . . . . . . . . . . . . . . . . 1 . . . . . . Hotshot 6 | . . . . . . . . . . . . . . . . . . . . . . . . . . 6 Striker 1 | . . . . . . . . . . . . . . . . . . . . . . . 1 . . . Executioner 1 | . . . . . . . . . . . . . . . . . . . . . . . 1 . . . Fortress 1 | . . . . . . . . . . . . . . . . . . . . . . . . . 1 . Thug 2 | . . . . . . . . . . . 2 . . . . . . . . . . . . . . . Savage 1 | . . . . . . . . . . . . . . . . . . . 1 . . . . . . . Best Kill Streak 7 | . . 2 6 3 . 5 6 . 7 . 4 . 6 1 . . . 1 3 1 2 1 5 7 5 4 Combat Bots Only 7 | . . 2 5 3 . 5 4 . 4 . 2 . 4 1 . . . 1 2 1 2 1 4 7 4 4 Max Kills in Single Turn 3 | . . 1 1 1 . 2 1 . 3 . 2 . 3 1 . . . 1 1 1 1 1 2 1 1 1 Gunslinging 1 | . . . . . . . . . 1 . . . . . . . . . . . . . 1 . . . Exploded 1 | . . . . . . . . . 1 . 1 . 1 . . . . . . . . . . . . . Melee 1 | . . . . . . . . . . . . . . 1 . . . . . . . . . . . . Uniques/NPCs Destroyed 1 | . . . . . . . . . . . . . 1 . . . . . . . . . . . . . 12-ASH (-5/Factory) Combat | -11 -10 -10 -9 -9 -8 -8 -8 -8 -6 -6 -6 -6 -5 -5 -5 -4 -4 -4 -4 -4 -4 -4 -3 -2 -2 -2 -------- Run | Yrd Mat Min Mat Min Mat Sto Rec Scr Fac Was Fac Low Fac Upp Upp Fac Was Fac Ext Cet Arc Hub Res Res Qua Frg Hostile Shots Fired 2407 | . 3 21 87 18 . 62 19 . 160 . 129 37 257 34 . 2 . 66 66 20 8 15 308 321 396 378 Missed 884 | . 1 4 27 6 . 19 2 . 43 . 44 21 84 13 . 1 . 30 25 5 5 8 139 130 145 132 Hits 1523 | . 2 17 60 12 . 43 17 . 117 . 85 16 173 21 . 1 . 36 41 15 3 7 169 191 251 246 Melee 39 | . . . . 1 . . . . . . . . 6 . . . . . . . . . 13 2 . 17 Projectile 1484 | . 2 17 60 11 . 43 17 . 117 . 85 16 167 21 . 1 . 36 41 15 3 7 156 189 251 229 AOE 5 | . . . . . . . 2 . . . . . . . . . . . 3 . . . . . . . Critical Strikes 77 | . . . 2 . . 4 3 . 2 . 5 . 11 1 . . . 2 2 3 1 . 6 7 8 20 Actively Blocked 2 | . . . . . . . . . . . . . . . . . . . . . . . . . . 2 Part Disruptions 5 | . . . . . . . . . . . 2 . . . . . . . . . . . . 1 . 2 Damage Taken 27440 | . 28 223 799 137 . 618 318 . 2080 . 1514 130 3654 360 . 23 . 668 1281 394 74 188 3948 3376 3744 3883 Core 4108 | . . 28 173 32 . 131 28 . 399 . 235 24 733 135 . 23 . 171 125 29 . 23 387 153 650 629 Absorbed by Shields 63 | . . . . . . . . . . . . . . . . . . . 63 . . . . . . . Redirected to Shielding 460 | . . . . . . . . . . . . 9 112 . . . . . . . . . . . . 339 Ignored by Resistances 4690 | . . . . . . . . . . . . . . . . . . . . . . . . 1143 599 2948 Regen/Repaired (Parts) 509 | . . . . . . . . . . 53 456 . . . . . . . . . . . . . . . Core Remaining (%) 59 | 100 . 88 . 48 . . . 71 . . . 22 . . 13 . . . . . . 67 70 . . . Volleys Fired 699 | . . 14 37 3 1 43 26 . 65 2 45 6 71 . . . 4 16 58 20 6 13 69 67 64 69 Largest 4 | . . 2 2 2 4 4 4 . 4 4 4 4 4 . . . 3 3 4 4 4 4 4 4 4 4 Hottest 300 | . . 60 79 66 132 171 184 . 228 104 162 162 246 . . . 70 70 261 240 182 170 240 290 299 300 Shots Fired 2138 | . . 28 74 6 4 157 99 . 245 7 136 24 198 . . . 12 18 208 49 22 50 222 207 195 177 Gun 1524 | . . 28 70 . . 32 52 . 241 7 112 24 131 . . . 12 18 186 32 16 50 222 122 128 41 Cannon 601 | . . . 4 6 4 125 47 . . . 17 . 65 . . . . . 22 17 6 . . 85 67 136 Launcher 13 | . . . . . . . . . 4 . 7 . 2 . . . . . . . . . . . . . Special . | . . . . . . . . . . . . . . . . . . . . . . . . . . . Kinetic 1385 | . . 21 59 6 4 125 47 . 146 7 94 18 131 . . . 12 16 104 33 17 38 181 160 55 111 Thermal 594 | . . 7 10 . . 16 52 . 89 . 35 6 30 . . . . . 104 5 . . 26 25 123 66 Explosive 2 | . . . . . . . . . . . . . 2 . . . . . . . . . . . . . Electromagnetic 157 | . . . 5 . . 16 . . 10 . 7 . 35 . . . . 2 . 11 5 12 15 22 17 . Robot Hit Streak 18 | . . 5 14 4 . 7 11 . 15 4 10 6 18 . . . 7 8 15 4 7 7 13 17 10 12 Robot Miss Streak 9 | . . 3 2 . . 8 4 . 6 1 5 1 3 . . . 2 2 6 3 5 4 4 9 3 4 Penetration Max 2 | . . . . . . . . . 2 . 2 . 1 . . . . . 1 . . 1 1 2 . 1 Secondary Targets 14 | . . . 1 . . . . . 8 . 1 . . . . . . . . . . 1 2 1 . . Max Gunslinging Chain 1 | . . . 1 . . . . . 1 . 1 . . . . . . . . . . 1 1 1 . . Shots Hit Robots 1163 | . . 16 53 3 . 59 48 . 152 6 73 9 118 1 2 . 11 27 104 21 10 26 126 96 110 92 Core Hits 526 | . . 10 27 3 . 36 22 . 70 1 44 4 52 1 1 . 3 9 49 9 7 12 51 38 36 41 Critical Kills 24 | . . . . . . . . . 6 . 1 . 2 . . . . . 4 . 1 1 2 1 1 5 Critical Parts Destroyed 34 | . . . . . . . . . 2 1 1 . 3 . . . . . 2 1 1 . 7 3 4 9 Critical Strikes 96 | . . . 1 1 . 3 1 . 13 1 4 . 12 . . . . 1 11 2 3 1 10 8 9 15 Burn 14 | . . . 1 . . . 1 . 5 . 2 . 1 . . . . . 4 . . . . . . . Meltdown 1 | . . . . . . . . . . . . . . . . . . . . . . . . . . 1 Destroy 59 | . . . . . . . . . 8 1 2 . 4 . . . . . 6 1 3 1 10 5 5 13 Blast 18 | . . . . 1 . 3 . . . . . . 5 . . . . . 1 1 . . . 2 4 1 Corrupt 2 | . . . . . . . . . . . . . 1 . . . . . . . . . . 1 . . Smash 1 | . . . . . . . . . . . . . 1 . . . . . . . . . . . . . Sever 1 | . . . . . . . . . . . . . . . . . . 1 . . . . . . . . Melee Attacks 44 | . . . . . . . . . . . . . 7 8 2 4 . 20 . . . . . . 3 . Kinetic 3 | . . . . . . . . . . . . . . . . . . . . . . . . . 3 . Impact 7 | . . . . . . . . . . . . . 7 . . . . . . . . . . . . . Slashing 34 | . . . . . . . . . . . . . . 8 2 4 . 20 . . . . . . . . Piercing . | . . . . . . . . . . . . . . . . . . . . . . . . . . . Sneak Attacks 4 | . . . . . . . . . . . . . 2 . . . . 2 . . . . . . . . Combat Hostiles . | . . . . . . . . . . . . . . . . . . . . . . . . . . . Follow-up Attacks . | . . . . . . . . . . . . . . . . . . . . . . . . . . . Damage Inflicted 36688 | . . 164 850 87 . 1459 1041 . 3870 110 2303 195 4841 41 156 . 238 926 2909 667 398 760 3666 4113 4414 3480 Guns 21512 | . . 164 798 . . 237 421 . 3600 110 1475 195 1872 . . . 238 377 2526 426 280 760 3600 2215 1964 254 Cannons 11320 | . . . 47 87 . 1180 595 . . . 112 . 1352 . . . . . 365 241 118 . . 1794 2282 3147 Explosions 2304 | . . . . . . 38 . . 270 . 693 . 1247 . . . . . . . . . 56 . . . Melee 1081 | . . . . . . . . . . . . . 251 41 156 . . 549 . . . . . . 84 . Ramming 471 | . . . 5 . . 4 25 . . . 23 . 119 . . . . . 18 . . . 10 104 84 79 Kinetic 22876 | . . 122 706 87 . 1180 595 . 2302 110 1316 171 2190 . . . 238 377 1768 446 322 585 3243 3085 1849 2184 Thermal 8310 | . . 42 58 . . 129 421 . 1189 . 471 24 1020 . . . . . 1123 51 . . 229 406 1930 1217 Explosive 669 | . . . . . . . . . . . . . 669 . . . . . . . . . . . . . Electromagnetic 3365 | . . . 81 . . 146 . . 379 . 493 . 592 . . . . . . 170 76 175 184 518 551 . Impact 251 | . . . . . . . . . . . . . 251 . . . . . . . . . . . . . Slashing 746 | . . . . . . . . . . . . . . 41 156 . . 549 . . . . . . . . Piercing . | . . . . . . . . . . . . . . . . . . . . . . . . . . . Highest Corruption 36 | . . . . . . 2 2 2 15 17 24 24 6 7 7 . . 3 22 28 28 36 . 1 29 29 Average Corruption 13 | . . . . . . 2 2 2 5 16 17 24 4 6 7 . . 2 9 27 28 33 . 1 16 23 Corruption Purged 7 | . . . . . . . . . . . . . . . . . . . . . . . . . . 7 Corruption Blocked . | . . . . . . . . . . . . . . . . . . . . . . . . . . . Effects 333 | . . . . . . 3 6 . 12 8 43 25 8 13 3 . . 3 41 25 5 13 . 2 60 63 Message Errors 69 | . . . . . . . 2 . 3 3 8 6 3 2 . . . 1 9 6 1 . . . 13 12 Matter Fused 77 | . . . . . . 1 1 . 4 3 13 5 2 6 1 . . . 6 6 1 4 . 1 11 12 Heat Flow Errors 37 | . . . . . . 1 2 . 2 . 4 1 . 3 . . . 2 5 2 . 2 . . 7 6 Energy Discharges 30 | . . . . . . . . . . 1 3 2 2 . 1 . . . 5 2 1 2 . . 5 6 Parts Rejected 6 | . . . . . . . . . . . 1 . . . . . . . 1 . . . . . . 4 Parts Fused 5 | . . . . . . . . . . . 1 1 . . . . . . 1 . . . . . . 2 Data Loss (minor) 38 | . . . . . . 1 . . 2 . 6 2 1 1 . . . . 5 2 . . . . 13 5 Data Loss (major) 14 | . . . . . . . . . . . 2 1 . 1 1 . . . 1 . . . . . 6 2 Misfires 11 | . . . . . . . 1 . . . 2 1 . . . . . . 2 1 . 1 . 1 1 1 Alerts 5 | . . . . . . . . . . . 1 1 . . . . . . . 1 . 1 . . 1 . Misdirections 16 | . . . . . . . . . . . . 4 . . . . . . 2 . . . . . 1 9 Weapon Failures 25 | . . . . . . . . . 1 1 2 1 . . . . . . 4 5 2 3 . . 2 4 Overload Shots 21 | . . . . . . . . . . . . . . . . . . . . 1 . . 18 2 . . Effects 2 | . . . . . . . . . . . . . . . . . . . . . . . 1 1 . . Energy Bleed 2 | . . . . . . . . . . . . . . . . . . . . . . . 1 1 . . Overflow Damage 897 | . . . . . . . . . 13 . . . 299 . 66 . . 11 . . . . 26 218 237 27 Projectiles 545 | . . . . . . . . . . . . . 63 . . . . . . . . . . 218 237 27 Explosions 50 | . . . . . . . . . 13 . . . 11 . . . . . . . . . 26 . . . Melee 302 | . . . . . . . . . . . . . 225 . 66 . . 11 . . . . . . . . Knockbacks 78 | . . . . 1 . 6 1 . . . . . 15 . . . . . 4 . 1 . . 16 16 18 Impact 3 | . . . . . . . . . . . . . 2 . . . . . . . . . . 1 . . Kinetic 70 | . . . . 1 . 6 1 . . . . . 13 . . . . . 4 . 1 . . 14 15 15 Secondary 5 | . . . . . . . . . . . . . . . . . . . . . . . . 1 1 3 Self-Inflicted Damage 190 | . . . . . . 33 . . 31 . 37 . 89 . . . . . . . . . . . . . Shots 8 | . . . . . . 1 . . 2 . 3 . 2 . . . . . . . . . . . . . Rammed 1 | . . . . . . . . . . . . . 1 . . . . . . . . . . . . . Targets Rammed 48 | . . . 2 . . 1 4 . . . 3 . 16 . . . . . 4 . . . 1 8 5 4 Kicked 47 | . . . 2 . . 1 4 . . . 3 . 15 . . . . . 4 . . . 1 8 5 4 Crushed . | . . . . . . . . . . . . . . . . . . . . . . . . . . . Highest Temperature 476 | . . 66 13 3 18 152 301 . 209 . 298 79 265 216 18 1 8 213 476 165 . 239 223 274 255 140 Average Temperature 80 | . . 18 7 3 12 38 120 . 84 . 79 35 86 23 8 1 6 73 107 58 . 111 88 92 99 79 Received Heat Transfer 4516 | . 18 129 327 66 . 225 117 . 244 . 186 18 587 . . 9 . . 154 . . 27 426 581 700 702 Effects 9 | . . . . . . . 2 . . . 1 . . . . . . . 6 . . . . . . . Shutdowns 2 | . . . . . . . . . . . . . . . . . . . 2 . . . . . . . Energy Bleed 3 | . . . . . . . 2 . . . . . . . . . . . 1 . . . . . . . Interference 1 | . . . . . . . . . . . 1 . . . . . . . . . . . . . . . Damage (minor) 2 | . . . . . . . . . . . . . . . . . . . 2 . . . . . . . Damage (major) 1 | . . . . . . . . . . . . . . . . . . . 1 . . . . . . . Siege Activations . | . . . . . . . . . . . . . . . . . . . . . . . . . . . Martial Activations . | . . . . . . . . . . . . . . . . . . . . . . . . . . . Shielding Activations . | . . . . . . . . . . . . . . . . . . . . . . . . . . . Robots Disrupted 1 | . . . . . . . . . . . . . . . . . . . . 1 . . . . . . Combat Hostiles 1 | . . . . . . . . . . . . . . . . . . . . 1 . . . . . . Robots Corrupted 10 | . . . . . . . . . . . 1 . 4 . . . . . . . . . . 2 2 1 Combat Hostiles 6 | . . . . . . . . . . . . . 2 . . . . . . . . . . 2 2 . Parts Fried 19 | . . . . . . . . . 2 . . . 7 . . . . . . 1 . 2 . 2 5 . Impact Corruptions 7 | . . . . . . . . . . . . . 6 . . . . . . . . . . . . 1 Robots Melted 1 | . . . . . . . . . . . . . . . . . . . . . . . . . . 1 Combat Hostiles 1 | . . . . . . . . . . . . . . . . . . . . . . . . . . 1 Parts Melted 19 | . . . . . . . . . 11 . 3 . . . . . . . . . . . 1 . . 4 Heat Transferred 13454 | . . 100 222 . . 235 972 . 3051 . 796 37 1149 . . . . . 2846 74 . . 235 444 2257 1036 Parts Sabotaged 4 | . . . . . . . . . . . . . 4 . . . . . . . . . . . . . Parts Stolen . | . . . . . . . . . . . . . . . . . . . . . . . . . . . Parts Stripped 18 | . . . . . . . . . . . . . . . . . . . . . . . . . 18 . Power Chain Reactions 4 | . . . . . . 1 . . . . 1 . 1 . . . . . . . . . 1 . . . Alert | -11 -10 -10 -9 -9 -8 -8 -8 -8 -6 -6 -6 -6 -5 -5 -5 -4 -4 -4 -4 -4 -4 -4 -3 -2 -2 -2 ------- Run | Yrd Mat Min Mat Min Mat Sto Rec Scr Fac Was Fac Low Fac Upp Upp Fac Was Fac Ext Cet Arc Hub Res Res Qua Frg Maximum Alert Level 4 | . . . 1 . . 2 . . 2 . 4 . 2 . . . . . 3 3 2 3 2 3 2 2 Low Security (%) 31 | 100 100 100 89 100 100 21 100 . 74 100 44 . 1 . . 100 100 100 21 . . 18 . . . 2 Level 1 40 | . . . 10 . . 64 . . 21 . 1 . 69 . . . . . 8 . 42 29 98 27 94 40 Level 2 19 | . . . . . . 13 . . 4 . 15 . 28 . . . . . 33 98 57 50 1 37 5 57 Level 3 7 | . . . . . . . . . . . 28 . . . . . . . 37 1 . 1 . 34 . . Level 4 . | . . . . . . . . . . . 9 . . . . . . . . . . . . . . . Level 5 . | . . . . . . . . . . . . . . . . . . . . . . . . . . . High Security . | . . . . . . . . . . . . . . . . . . . . . . . . . . . Max Security . | . . . . . . . . . . . . . . . . . . . . . . . . . . . Peak Influence 1149 | . 4 50 213 117 2 535 158 . 440 96 1149 . 660 . . 147 48 30 951 700 460 708 523 793 422 666 Initial 528 | . . . 15 55 . . 88 . . 95 9 . 324 . . 147 48 . . 528 247 154 350 285 414 199 Average 329 | . . 19 121 54 . 293 112 . 128 62 506 . 383 . . 140 29 8 497 605 390 437 305 578 341 467 Influence Increases 12323 | . 4 100 370 72 2 1096 448 . 910 38 1671 20 1166 183 10 21 . 87 1571 332 233 744 771 919 629 926 Destroy 0b10 Robot/C 5520 | . . 80 260 60 . 520 220 . 520 . 640 . 400 60 . . . 40 800 160 80 220 300 440 400 320 Destroy 0b10 Robot/NC 405 | . . . 15 . . 65 30 . 60 . 95 5 40 . 10 . . 5 15 10 . . 15 . 15 25 Destroy Leader 1000 | . . 20 64 10 . 174 . . 104 . 148 . 102 10 . . . 12 72 . . 40 62 80 52 50 Allied During Kill 1691 | . . . . . . 225 . . . . 507 . . 8 . . . . 497 129 80 245 . . . . Successful Hack 140 | . 4 . 12 . . 2 31 . 26 . . . . . . . . . 7 . . 8 12 . . 38 Select Force Hacks 150 | . . . . . . . 150 . . . . . . . . . . . . . . . . . . . Disable Machine 945 | . . . . . . 90 . . 90 . 90 . 270 . . 15 . 15 30 15 45 45 45 45 90 60 Anti-Garrison Action 150 | . . . . . . . . . . . . . . . . . . . . . . 150 . . . . Destroy Structure 1317 | . . . 4 2 2 20 2 . 5 38 101 . 324 . . 6 . . 60 18 28 36 82 354 57 178 Partial Spotted 30 | . . . . . . . . . 15 . . . . . . . . 15 . . . . . . . . Lose Combat Pursuer 975 | . . . 15 . . . 15 . 90 . 90 15 30 105 . . . . 90 . . . 255 . 15 255 Influence Decreases 11708 | . 4 60 266 216 . 871 529 146 638 297 582 607 1055 482 103 117 138 87 628 657 411 516 930 690 1012 666 Entered New Map 3748 | . . . 25 89 . 2 139 146 . 177 4 409 191 232 63 87 90 . . 415 371 286 318 224 324 156 Time Decay 5736 | . 4 60 201 117 . 389 380 . 418 80 378 198 474 190 40 30 28 67 464 222 40 110 542 356 538 410 Lost Part 870 | . . . 40 10 . . 10 . 70 . 20 . 240 20 . . . 20 10 . . . 70 110 150 100 Lost Ally 754 | . . . . . . 180 . . . 40 180 . . 40 . . 20 . 154 20 . 120 . . . . Purge Threat 600 | . . . . . . 300 . . 150 . . . 150 . . . . . . . . . . . . . Squads Dispatched 74 | . . . 1 . . 4 . . 9 . 13 . 10 . . . . 2 3 . . 5 11 7 5 4 Investigation 27 | . . . . . . 1 . . 3 . 7 . 5 . . . . 1 1 . . 1 7 . . 1 Extermination 16 | . . . . . . . . . 4 . 1 . 1 . . . . 1 . . . . . 2 5 2 Reinforcement 17 | . . . 1 . . . . . 2 . 4 . 2 . . . . . 1 . . 1 4 1 . 1 Assault 6 | . . . . . . . . . . . 1 . 1 . . . . . 1 . . 2 . 1 . . Garrison 8 | . . . . . . 3 . . . . . . 1 . . . . . . . . 1 . 3 . . Intercept . | . . . . . . . . . . . . . . . . . . . . . . . . . . . Searches Triggered . | . . . . . . . . . . . . . . . . . . . . . . . . . . . Construction Impeded 3 | . . . . . . . . . . . 2 . 1 . . . . . . . . . . . . . Haulers Reinforced 3 | . . . . . . . . . 1 . 1 . . . . . . . . . . . 1 . . . Active Scanning Responses . | . . . . . . . . . . . . . . . . . . . . . . . . . . . Cargo Convoy Interrupts 1 | . . . . . . . . . . . 1 . . . . . . . . . . . . . . . Stealth | -11 -10 -10 -9 -9 -8 -8 -8 -8 -6 -6 -6 -6 -5 -5 -5 -4 -4 -4 -4 -4 -4 -4 -3 -2 -2 -2 --------- Run | Yrd Mat Min Mat Min Mat Sto Rec Scr Fac Was Fac Low Fac Upp Upp Fac Was Fac Ext Cet Arc Hub Res Res Qua Frg Distress Signals 39 | . 2 . 2 . . 4 . . 5 . 2 . 1 . . . . . 4 2 . . 10 . . 7 Communications Jammed 2 | . . . . . . . . . 2 . . . . . . . . . . . . . . . . . Distress Signals 2 | . . . . . . . . . 2 . . . . . . . . . . . . . . . . . Times Spotted 493 | . 2 4 24 6 . 34 11 . 39 2 40 14 41 15 . 2 9 9 48 12 6 21 53 29 29 43 Peak Tracking Total 13 | . 2 2 8 3 . 6 3 . 6 1 11 12 5 5 . 2 6 5 5 5 2 9 9 8 5 13 Tactical Retreats 45 | . . . 1 . . . 1 . 3 . 2 3 8 3 . . 1 1 3 . . . 10 . 1 8 ECM-based Alert Blocks 32 | . . . . . . . . . . . . 10 14 . . . . 2 . . . . 6 . . . Traps | -11 -10 -10 -9 -9 -8 -8 -8 -8 -6 -6 -6 -6 -5 -5 -5 -4 -4 -4 -4 -4 -4 -4 -3 -2 -2 -2 ------- Run | Yrd Mat Min Mat Min Mat Sto Rec Scr Fac Was Fac Low Fac Upp Upp Fac Was Fac Ext Cet Arc Hub Res Res Qua Frg Traps Triggered 20 | . . . . . . 2 . . 4 . 1 . 6 . . 1 . 1 2 . . . 1 . 2 . Indirectly . | . . . . . . . . . . . . . . . . . . . . . . . . . . . Trap Hack Attempts . | . . . . . . . . . . . . . . . . . . . . . . . . . . . Triggered . | . . . . . . . . . . . . . . . . . . . . . . . . . . . Disarmed . | . . . . . . . . . . . . . . . . . . . . . . . . . . . Reprogrammed . | . . . . . . . . . . . . . . . . . . . . . . . . . . . Reused . | . . . . . . . . . . . . . . . . . . . . . . . . . . . Traps Extracted . | . . . . . . . . . . . . . . . . . . . . . . . . . . . Installed . | . . . . . . . . . . . . . . . . . . . . . . . . . . . Triggered . | . . . . . . . . . . . . . . . . . . . . . . . . . . . Machines | -11 -10 -10 -9 -9 -8 -8 -8 -8 -6 -6 -6 -6 -5 -5 -5 -4 -4 -4 -4 -4 -4 -4 -3 -2 -2 -2 ---------- Run | Yrd Mat Min Mat Min Mat Sto Rec Scr Fac Was Fac Low Fac Upp Upp Fac Was Fac Ext Cet Arc Hub Res Res Qua Frg Machines Disabled 69 | . . . . . . 6 . . 6 . 6 . 18 . . 1 . 1 4 4 3 4 3 3 6 4 Max in Single Turn 6 | . . . . . . 1 . . 1 . 2 . 6 . . 1 . 1 1 1 1 1 1 1 1 1 Garrison Access 1 | . . . . . . . . . . . . . . . . . . . . . . 1 . . . . Machines Repaired . | . . . . . . . . . . . . . . . . . . . . . . . . . . . Machines Dismantled . | . . . . . . . . . . . . . . . . . . . . . . . . . . . Machines Sabotaged . | . . . . . . . . . . . . . . . . . . . . . . . . . . . Overloaded Fab Kills . | . . . . . . . . . . . . . . . . . . . . . . . . . . . Hacking | -11 -10 -10 -9 -9 -8 -8 -8 -8 -6 -6 -6 -6 -5 -5 -5 -4 -4 -4 -4 -4 -4 -4 -3 -2 -2 -2 --------- Run | Yrd Mat Min Mat Min Mat Sto Rec Scr Fac Was Fac Low Fac Upp Upp Fac Was Fac Ext Cet Arc Hub Res Res Qua Frg Machines Accessed 74 | . 2 . 2 . . 5 10 1 7 . 11 1 6 3 1 1 . 2 4 1 . 2 7 1 4 3 Terminals 34 | . 2 . 2 . . 5 5 . 3 . 4 . 1 . . 1 . . 4 1 . 2 . . 3 1 Fabricators . | . . . . . . . . . . . . . . . . . . . . . . . . . . . Repair Stations 1 | . . . . . . . . . . . . . . . . . . . . . . . . . 1 . Recycling Units 27 | . . . . . . . 5 . 3 . 7 . 5 . . . . 1 . . . . 5 . . 1 Scanalyzers 4 | . . . . . . . . . 1 . . . . . . . . 1 . . . . 1 . . 1 Garrison Access 2 | . . . . . . . . . . . . . . . . . . . . . . . 1 1 . . Total Hacks 143 | . 3 . 6 . . 15 18 6 15 . 15 1 8 7 1 1 . 2 10 1 . 3 14 1 9 7 Successful 72 | . 1 . 2 . . 4 14 6 6 . 7 1 5 7 1 . . 1 3 1 . 2 5 . 3 3 Failed 70 | . 2 . 4 . . 11 4 . 9 . 8 . 3 . . 1 . 1 7 . . 1 9 1 5 4 Catastrophic 15 | . . . . . . 4 1 . 2 . . . 1 . . . . 1 . . . 1 2 1 2 . Database Lockouts 1 | . . . . . . . . . . . . . . . . . . . . . . . . . 1 . Manual 74 | . . . 2 . . 7 18 . 6 . 12 . 6 . . . . 1 . 1 . 2 11 . 6 2 Terminals 80 | . 3 . 6 . . 15 13 . 8 . 7 . 2 . . 1 . . 10 1 . 3 . . 7 4 Fabricators . | . . . . . . . . . . . . . . . . . . . . . . . . . . . Repair Stations 2 | . . . . . . . . . . . . . . . . . . . . . . . . . 2 . Recycling Units 36 | . . . . . . . 5 . 4 . 8 . 6 . . . . 1 . . . . 11 . . 1 Scanalyzers 8 | . . . . . . . . . 3 . . . . . . . . 1 . . . . 2 . . 2 Garrison Access 2 | . . . . . . . . . . . . . . . . . . . . . . . 1 1 . . Terminal Hacks 34 | . 1 . 2 . . 4 . 6 3 . . 1 1 7 1 . . . 3 1 . 1 . . 2 1 Record 8 | . . . . . . . . . . . . . . 5 . . . . . 1 . . . . 2 . Robot Analysis 6 | . . . . . . . . 6 . . . . . . . . . . . . . . . . . . Open Door 8 | . . . . . . 1 . . . . . 1 . 2 1 . . . 3 . . . . . . . Branch Access Points 1 | . . . 1 . . . . . . . . . . . . . . . . . . . . . . . Emergency Access Points 1 | . . . . . . 1 . . . . . . . . . . . . . . . . . . . . Recycling Unit Index 1 | . . . . . . . . . . . . . . . . . . . . . . 1 . . . . Unreport Threat 4 | . . . . . . 2 . . 1 . . . 1 . . . . . . . . . . . . . Locate Traps 2 | . 1 . . . . . . . . . . . . . . . . . . . . . . . . 1 Registered Components 1 | . . . . . . . . . 1 . . . . . . . . . . . . . . . . . Zone Layout 2 | . . . 1 . . . . . 1 . . . . . . . . . . . . . . . . . Fabricator Hacks . | . . . . . . . . . . . . . . . . . . . . . . . . . . . Repair Station Hacks 1 | . . . . . . . . . . . . . . . . . . . . . . . . . 1 . Scan Component 1 | . . . . . . . . . . . . . . . . . . . . . . . . . 1 . Recycling Unit Hacks . | . . . . . . . . . . . . . . . . . . . . . . . . . . . Scanalyzer 2 | . . . . . . . . . . . . . . . . . . . . . . . 1 . . 1 Retrieve Study 2 | . . . . . . . . . . . . . . . . . . . . . . . 1 . . 1 Garrison Access Hacks . | . . . . . . . . . . . . . . . . . . . . . . . . . . . Unauthorized Hacks 35 | . . . . . . . 14 . 3 . 7 . 4 . . . . 1 . . . 1 4 . . 1 Terminals 11 | . . . . . . . 9 . 1 . . . . . . . . . . . . 1 . . . . Botnet 5 | . . . . . . . 4 . 1 . . . . . . . . . . . . . . . . . Skim 5 | . . . . . . . 5 . . . . . . . . . . . . . . . . . . . Sabotage 1 | . . . . . . . . . . . . . . . . . . . . . . 1 . . . . Fabricators . | . . . . . . . . . . . . . . . . . . . . . . . . . . . Repair Stations . | . . . . . . . . . . . . . . . . . . . . . . . . . . . Recycling Units 24 | . . . . . . . 5 . 2 . 7 . 4 . . . . 1 . . . . 4 . . 1 Tunnel 5 | . . . . . . . 5 . . . . . . . . . . . . . . . . . . . Fedlink 19 | . . . . . . . . . 2 . 7 . 4 . . . . 1 . . . . 4 . . 1 Scanalyzers . | . . . . . . . . . . . . . . . . . . . . . . . . . . . Garrison Access . | . . . . . . . . . . . . . . . . . . . . . . . . . . . Data Cores Recovered 4 | . . . . . . 1 . . . . 2 . . . . . . . . . . . . . . 1 Used . | . . . . . . . . . . . . . . . . . . . . . . . . . . . Hacking Detections 41 | . 2 . 1 . . 5 4 . 5 . 4 . 2 . . 1 . 1 1 1 . 2 5 1 4 2 Full Trace Events 2 | . . . . . . . . . 1 . . . . . . . . . . . . . 1 . . . Feedback Events . | . . . . . . . . . . . . . . . . . . . . . . . . . . . Feedback Blocked . | . . . . . . . . . . . . . . . . . . . . . . . . . . . Robot Schematics Acquired . | . . . . . . . . . . . . . . . . . . . . . . . . . . . Robots Built . | . . . . . . . . . . . . . . . . . . . . . . . . . . . Authchips . | . . . . . . . . . . . . . . . . . . . . . . . . . . . Time . | . . . . . . . . . . . . . . . . . . . . . . . . . . . Total Robot Build Rating . | . . . . . . . . . . . . . . . . . . . . . . . . . . . Part Schematics Acquired . | . . . . . . . . . . . . . . . . . . . . . . . . . . . Parts Built . | . . . . . . . . . . . . . . . . . . . . . . . . . . . Authchips . | . . . . . . . . . . . . . . . . . . . . . . . . . . . Time . | . . . . . . . . . . . . . . . . . . . . . . . . . . . Total Part Build Rating . | . . . . . . . . . . . . . . . . . . . . . . . . . . . Part Studies Acquired 2 | . . . . . . . . . . . . . . . . . . . . . . . 1 . . 1 Parts Repaired . | . . . . . . . . . . . . . . . . . . . . . . . . . . . Time . | . . . . . . . . . . . . . . . . . . . . . . . . . . . Parts Recycled . | . . . . . . . . . . . . . . . . . . . . . . . . . . . Recycled Matter . | . . . . . . . . . . . . . . . . . . . . . . . . . . . Retrieved Matter . | . . . . . . . . . . . . . . . . . . . . . . . . . . . Retrieved Components . | . . . . . . . . . . . . . . . . . . . . . . . . . . . Parts Scanalyzed . | . . . . . . . . . . . . . . . . . . . . . . . . . . . Part Schematics Acquired . | . . . . . . . . . . . . . . . . . . . . . . . . . . . Parts Damaged . | . . . . . . . . . . . . . . . . . . . . . . . . . . . Bothacking | -11 -10 -10 -9 -9 -8 -8 -8 -8 -6 -6 -6 -6 -5 -5 -5 -4 -4 -4 -4 -4 -4 -4 -3 -2 -2 -2 ------------ Run | Yrd Mat Min Mat Min Mat Sto Rec Scr Fac Was Fac Low Fac Upp Upp Fac Was Fac Ext Cet Arc Hub Res Res Qua Frg Used RIF Installer . | . . . . . . . . . . . . . . . . . . . . . . . . . . . Robots Hacked . | . . . . . . . . . . . . . . . . . . . . . . . . . . . Non-combat . | . . . . . . . . . . . . . . . . . . . . . . . . . . . Combat . | . . . . . . . . . . . . . . . . . . . . . . . . . . . Robot Hacks Applied . | . . . . . . . . . . . . . . . . . . . . . . . . . . . Relay Couplers Released 4 | . . . . . . . . . . . . . . . . . . . . . . 4 . . . . Machine Destruction 4 | . . . . . . . . . . . . . . . . . . . . . . 4 . . . . Fabnet Peak Effective % . | . . . . . . . . . . . . . . . . . . . . . . . . . . . Robots Rewired 13 | . . . . . . . . . . . . . . . . . . . 13 . . . . . . . Allies Hacked 1 | . . . . . . . . . . . 1 . . . . . . . . . . . . . . . Hacks Repelled . | . . . . . . . . . . . . . . . . . . . . . . . . . . . Allies | -11 -10 -10 -9 -9 -8 -8 -8 -8 -6 -6 -6 -6 -5 -5 -5 -4 -4 -4 -4 -4 -4 -4 -3 -2 -2 -2 -------- Run | Yrd Mat Min Mat Min Mat Sto Rec Scr Fac Was Fac Low Fac Upp Upp Fac Was Fac Ext Cet Arc Hub Res Res Qua Frg Total Allies 56 | . . . . . . 10 . . . 19 . 1 . 2 . . 1 . 18 5 . . . . . . Largest Group 19 | . . . . . . 10 . . . 19 12 1 1 2 . . 1 . 11 9 9 8 . . . . Highest-Rated Group 760 | . . . . . . 173 . . . 684 463 106 106 56 . . 46 . 592 760 755 610 . . . . Highest-Rated Ally 159 | . . . . . . 29 . . . 50 50 106 106 31 . . 46 . 159 145 145 96 . . . . Total Orders . | . . . . . . . . . . . . . . . . . . . . . . . . . . . Ally Attacks 653 | . . . . . . 101 . . . 68 159 5 . 9 . . 5 . 162 56 17 71 . . . . Total Damage 17321 | . . . . . . 1146 . . . 2987 4177 110 . 129 . . 115 . 4281 1472 669 2235 . . . . Kills 110 | . . . . . . 12 . . . 11 34 . . 2 . . . . 32 8 2 9 . . . . Allies Corrupted 4 | . . . . . . . . . . . 3 . . . . . . . . . . 1 . . . . Allies Melted . | . . . . . . . . . . . . . . . . . . . . . . . . . . . Intel | -11 -10 -10 -9 -9 -8 -8 -8 -8 -6 -6 -6 -6 -5 -5 -5 -4 -4 -4 -4 -4 -4 -4 -3 -2 -2 -2 ------- Run | Yrd Mat Min Mat Min Mat Sto Rec Scr Fac Was Fac Low Fac Upp Upp Fac Was Fac Ext Cet Arc Hub Res Res Qua Frg Active Infowar (turns) 9848 | . . . . . . . . . 1090 166 64 37 1102 . 53 65 74 272 1349 462 84 229 1546 800 1480 975 Optics 480 | . . . . . . . . . 144 . . . . . . . . 34 302 . . . . . . . Sensors 5412 | . . . . . . . . . 946 166 64 . . . . . . 24 1257 462 84 229 1546 . 634 . Decoding 8465 | . . . . . . . . . . . . . 1076 . 53 65 74 272 1349 462 84 229 1546 800 1480 975 T.N.C. 251 | . . . . . . . . . . . . . . . . . . 151 100 . . . . . . . Jamming 734 | . . . . . . . . . 497 . . . . . . . . . . . . . . 123 114 . ECM 708 | . . . . . . . . . . . . 37 425 . . . . 29 . . . . 217 . . . Robot Analysis Total 6 | . . . . . . . . 6 . . . . . . . . . . . . . . . . . . Derelict Logs Recovered 6 | . . . . 2 . . . . . . . 1 . . 3 . . . . . . . . . . . Drone Launches . | . . . . . . . . . . . . . . . . . . . . . . . . . . . Drone Recoveries . | . . . . . . . . . . . . . . . . . . . . . . . . . . . Decoded 0b10 Intel 241 | . . . . . . . . . . . . . 20 . . 6 6 18 48 3 2 6 45 24 36 27 Traps 27 | . . . . . . . . . . . . . . . . . . 1 8 . . . 6 2 5 5 Emergency Access 24 | . . . . . . . . . . . . . . . . 1 . 1 2 . . . 4 2 8 6 Items 113 | . . . . . . . . . . . . . . . . 4 6 12 29 . . 3 24 16 19 . Machines 33 | . . . . . . . . . . . . . . . . 1 . 2 5 2 2 2 6 3 4 6 Garrisons 2 | . . . . . . . . . . . . . 2 . . . . . . . . . . . . . Patrols 22 | . . . . . . . . . . . . . 6 . . . . 2 3 . . . 4 . . 7 Investigations 5 | . . . . . . . . . . . . . 5 . . . . . . . . . . . . . Guards 13 | . . . . . . . . . . . . . 7 . . . . . . . . 1 1 1 . 3 Exits 2 | . . . . . . . . . . . . . . . . . . . 1 1 . . . . . . Exploration | -11 -10 -10 -9 -9 -8 -8 -8 -8 -6 -6 -6 -6 -5 -5 -5 -4 -4 -4 -4 -4 -4 -4 -3 -2 -2 -2 ------------- Run | Yrd Mat Min Mat Min Mat Sto Rec Scr Fac Was Fac Low Fac Upp Upp Fac Was Fac Ext Cet Arc Hub Res Res Qua Frg Turns Passed 16201 | 6 223 133 458 254 75 972 896 1402 1173 166 948 417 1209 384 91 65 74 272 1349 462 84 229 1546 800 1531 982 Spaces Moved 12343 | 6 181 71 252 198 57 599 606 1030 1221 112 691 349 766 654 311 116 151 522 888 291 41 137 1032 448 972 641 Core 216 | . . . . . . . . . . . . . 25 179 . . . . . . . . . . . 12 Treads . | . . . . . . . . . . . . . . . . . . . . . . . . . . . Legs 9228 | 6 181 71 252 198 57 599 606 1030 72 87 691 349 741 66 . . . . 672 291 41 137 1032 448 972 629 Wheels . | . . . . . . . . . . . . . . . . . . . . . . . . . . . Hover 1174 | . . . . . . . . . 1149 25 . . . . . . . . . . . . . . . . Flight 1725 | . . . . . . . . . . . . . . 409 311 116 151 522 216 . . . . . . . Fastest Speed 23 | 120 120 120 120 120 120 120 130 130 45 51 110 110 50 23 23 23 32 27 27 120 120 120 110 110 110 50 Average Speed 97 | 120 120 120 121 120 120 128 130 130 56 96 110 110 105 41 25 29 32 31 98 120 120 120 112 113 114 108 Slowest Speed 190 | 120 120 120 190 120 120 130 130 130 115 110 180 110 190 120 103 32 32 32 120 120 120 120 120 187 120 184 Overloaded Moves . | . . . . . . . . . . . . . . . . . . . . . . . . . . . Propulsion Burnouts . | . . . . . . . . . . . . . . . . . . . . . . . . . . . Robots Hopped 3 | . . . . . . . . . . . . . . . . . . 1 2 . . . . . . . Potential Cave-ins 1 | . . . . . . . . . . . . . . . . . . . . . . . . 1 . . Cave-ins Triggered . | . . . . . . . . . . . . . . . . . . . . . . . . . . . Exploration Rate (%) 44 | 2 38 21 19 58 11 86 94 83 26 68 26 36 23 50 48 4 81 17 85 75 72 22 41 11 79 32 Regions Visited 26 Branch Regions 14 Pre-discovered Areas 11 | . . . . 1 . . 6 . 1 . . 1 . 1 1 . . . . . . . . . . . Known Exits Taken 15 | . . . 1 . 1 . 1 1 . . 1 1 . . 1 . . 1 1 1 1 1 1 1 1 . Unknown Exits Taken 7 | 1 1 1 . 1 . 1 . . . . . . 1 1 . . . . . . . . . . . . Scrap Searched 11 | . . . . . . . . 6 . . . 2 . . 3 . . . . . . . . . . . Spaces Dug 69 | . . . . . 3 . . . . . 3 . 14 1 . 3 . . . . . . 15 12 1 17 Terrain Destroyed 583 | . . . . 2 3 15 2 . 5 . 57 . 202 1 . 3 . . 9 5 8 10 54 133 18 56 Melee 7 | . . . . . . . . . . . . . 3 1 . 3 . . . . . . . . . . Projectile 313 | . . . . 2 3 13 2 . 5 . 7 . 29 . . . . . 9 5 8 10 52 95 18 55 AOE 261 | . . . . . . 2 . . . . 50 . 170 . . . . . . . . . 1 38 . . Terrain Rammed . | . . . . . . . . . . . . . . . . . . . . . . . . . . . Walls Destroyed . | . . . . . . . . . . . . . . . . . . . . . . . . . . . Machines Disabled . | . . . . . . . . . . . . . . . . . . . . . . . . . . . Actions | -11 -10 -10 -9 -9 -8 -8 -8 -8 -6 -6 -6 -6 -5 -5 -5 -4 -4 -4 -4 -4 -4 -4 -3 -2 -2 -2 --------- Run | Yrd Mat Min Mat Min Mat Sto Rec Scr Fac Was Fac Low Fac Upp Upp Fac Was Fac Ext Cet Arc Hub Res Res Qua Frg Total 14934 | 5 186 92 330 210 61 704 650 1092 1556 167 783 368 1002 746 320 143 168 601 1231 368 62 171 1277 591 1254 796 Wait 885 | . 3 1 2 1 . 19 10 57 186 27 20 1 64 53 4 2 11 27 109 40 12 9 95 17 71 44 Move 12314 | 5 180 70 251 197 56 598 605 1029 1221 111 690 348 766 653 310 116 150 519 883 290 40 136 1031 447 971 641 Hop 3 | . . . . . . . . . . . . . . . . . . 1 2 . . . . . . . Pick Up 136 | . 2 . 9 2 2 12 1 1 9 2 2 5 14 3 . 6 . . 10 6 . . 10 7 28 5 Fast Attach 155 | . 1 . 2 1 . . . 2 13 4 4 1 16 24 4 6 1 7 17 1 1 . 5 10 27 8 Attach 87 | . . . 4 . 2 . . . 13 4 2 1 14 2 . 2 . 4 5 1 . . 7 10 11 5 Detach 41 | . . . . . . . . . 7 4 3 . 3 1 . 1 . 2 6 . . . . 3 7 4 Swap 210 | . . 5 14 2 . 16 2 1 21 4 9 1 19 . . . 1 1 24 4 1 7 32 9 29 8 Drop 231 | . . 2 9 4 . 15 2 2 21 9 5 5 13 2 . 6 1 4 31 6 2 6 27 13 38 8 Fire 699 | . . 14 37 3 1 43 26 . 65 2 45 6 71 . . . 4 16 58 20 6 13 69 67 64 69 Melee 44 | . . . . . . . . . . . . . 7 8 2 4 . 20 . . . . . . 3 . Ram . | . . . . . . . . . . . . . . . . . . . . . . . . . . . Kick 47 | . . . 2 . . 1 4 . . . 3 . 15 . . . . . 4 . . . 1 8 5 4 Crush . | . . . . . . . . . . . . . . . . . . . . . . . . . . . Escape Stasis . | . . . . . . . . . . . . . . . . . . . . . . . . . . . Rewire 82 | . . . . . . . . . . . . . . . . . . . 82 . . . . . . . Trap . | . . . . . . . . . . . . . . . . . . . . . . . . . . . Miscellaneous . | . . . . . . . . . . . . . . . . . . . . . . . . . . . Route ------- -11/Scrapyard -10/Materials -10/Mines -9/Materials -9/Mines -8/Materials -8/Storage (discovered 2 exits: [*Fac] / *Rec) -8/Recycling (discovered 2 exits: *Fac / *Scr) -8/Scraptown (discovered 2 exits: *Fac x2) -6/Factory (discovered 3 exits: Fac / *Low x2) -6/Waste -6/Factory -6/Lower Caves -5/Factory -5/Upper Caves -5/Upper Caves -4/Factory (discovered 2 exits: Res x2) -4/Waste -4/Factory (discovered 2 exits: *Upp / *Ext) -4/Extension (discovered 3 exits: *Res x2 / *Cet) -4/Cetus (discovered 2 exits: *Res / *Arc) -4/Archives -4/Hub_04(d) -3/Research (discovered 2 exits: *Res x2) -2/Research (discovered 3 exits: *Acc x2 / *Qua) -2/Quarantine (discovered 2 exits: [*Sec] / *Frg) -2/Protoforge (discovered 1 exit: *Acc) History --------- Turn | Location | Event 1 | -11/Scrapyard | Discovered new exit (range 2) 7 | -11/Scrapyard | Entered Materials 8 | -10/Materials | Met a group of wandering Federalists 119 | -10/Materials | Lost 5 allies 152 | -10/Materials | Discovered new exit (range 12) 230 | -10/Materials | Entered Mines 310 | -10/Mines | Build established: Mutant 311 | -10/Mines | Found a Scrap Suit stashed away for nefarious purposes 332 | -10/Mines | Discovered new exit (range 5) 363 | -10/Mines | Entered Materials 363 | -9/Materials | Evolved 2 slots: Propulsion x1, Utility x1 416 | -9/Materials | Identified exit to Mines 531 | -9/Materials | Lost 4 parts (1p1n1u1w) 801 | -9/Materials | Build established: Scavenger-Mutant 821 | -9/Materials | Entered Mines 835 | -9/Mines | Core integrity fell below 50% 912 | -9/Mines | Learned location of Zion (-6) 1012 | -9/Mines | Discovered new exit (range 5) 1075 | -9/Mines | Entered Materials 1075 | -8/Materials | Evolved 2 slots: Weapon x2 1076 | -8/Materials | Identified exit to Storage 1150 | -8/Materials | Entered Storage 1160 | -8/Storage | Assisted by bots powering up and referring to "LRC-V3" 1296 | -8/Storage | Garrison activated, responded to threat 1455 | -8/Storage | Build established: Commander-Gunner 1494 | -8/Storage | Lost 4 allies 1569 | -8/Storage | Discovered new exit (range 13) 1615 | -8/Storage | Lost 4 allies 1884 | -8/Storage | Build established: Gunner 2118 | -8/Storage | Used back door to open Recycling access 2118 | -8/Storage | Discovered new exit (range 4) 2122 | -8/Storage | Entered Recycling 2633 | -8/Recycling | Discovered new exit (range 16) 2768 | -8/Recycling | Learned Factory emergency access door positions 2796 | -8/Recycling | Learned location of Storage (-8) 2828 | -8/Recycling | Learned location of 2 exits from Factory 2886 | -8/Recycling | Identified exit to Scraptown 2988 | -8/Recycling | Scanned before Scraplab entrance 3006 | -8/Recycling | Entered Scraplab 3018 | -8/Recycling | Entered Scraptown 3019 | -8/Scraptown | Identified exit to Factory 3024 | -8/Scraptown | System corruption cleaned by C-Scrubber 3207 | -8/Scraptown | Visited Cyclists 3229 | -8/Scraptown | Visited Assassins FH 3255 | -8/Scraptown | Visited Spacefarers 3565 | -8/Scraptown | Visited Red Mages 3772 | -8/Scraptown | Visited UFD Registry 3772 | -8/Scraptown | Registered with UFD as "Megaback" 3804 | -8/Scraptown | Visited Observation Area 3822 | -8/Scraptown | Visited Scrap Suit Storage 3844 | -8/Scraptown | Visited Analyses Database 3873 | -8/Scraptown | Visited Scrapoid Research Area 3902 | -8/Scraptown | Received an X-ray algorithm 3986 | -8/Scraptown | Visited Research Penetration Think Tank 4016 | -8/Scraptown | Visited DA-N13 Charitable Foundation 4021 | -8/Scraptown | Found DCF Scrap (31 items) 4091 | -8/Scraptown | Visited Junk Repository 4126 | -8/Scraptown | Visited Supply Room 4155 | -8/Scraptown | Visited LU-1G1's Boring Crew 4201 | -8/Scraptown | Visited Curators Association 4353 | -8/Scraptown | Met Optimus 4353 | -8/Scraptown | Accepted into 0bPrime 4420 | -8/Scraptown | Entered Factory 4420 | -6/Factory | Evolved 4 slots: Power x1, Propulsion x1, Utility x2 4421 | -6/Factory | Identified exit to Lower Caves 4422 | -6/Factory | Identified exit to Factory 4617 | -6/Factory | Loaded intel: 8 recycling unit locations 5214 | -6/Factory | Learned location of Protoforge (-2) 5546 | -6/Factory | System corruption reached 10% 5593 | -6/Factory | Sucked down chute 5593 | -6/Factory | Entered Waste 5605 | -6/Waste | Spotted C-40 Crusher 5613 | -6/Waste | Warlord forces began an assault 5644 | -6/Waste | Spotted C-40 Crusher 5648 | -6/Waste | Spotted C-40 Crusher 5651 | -6/Waste | Allies destroyed C-40 Crusher 5653 | -6/Waste | Allies destroyed C-40 Crusher 5662 | -6/Waste | Found Damper Plating 5708 | -6/Waste | Discovered new exit (range 11) 5708 | -6/Waste | Spotted C-40 Crusher 5709 | -6/Waste | Allies destroyed C-40 Crusher 5740 | -6/Waste | Lost 6 allies 5759 | -6/Waste | Entered Factory 5759 | -6/Factory | Accompanied by 12 allies 5800 | -6/Factory | Loaded intel: 8 recycling unit locations 6202 | -6/Factory | Build established: Scavenger-Gunner 6280 | -6/Factory | Core integrity fell below 50% 6459 | -6/Factory | First assault squad dispatched 6627 | -6/Factory | Cargo convoy interrupted 6693 | -6/Factory | Discovered exit to Lower Caves (range 8) 6707 | -6/Factory | Entered Lower Caves 6716 | -6/Lower Caves | Lost 6 allies 7044 | -6/Lower Caves | Attracted the attention of an 0b10 checkpoint 7046 | -6/Lower Caves | Attracted the attention of an 0b10 outpost 7118 | -6/Lower Caves | 12-ASH showed up to help 7120 | -6/Lower Caves | 12-ASH revealed a hidden path 7124 | -6/Lower Caves | Entered Factory 7124 | -5/Factory | Accompanied by 1 ally (12-ASH) 7124 | -5/Factory | Evolved 2 slots: Propulsion x1, Utility x1 7140 | -5/Factory | Murdered 12-ASH 7311 | -5/Factory | Loaded intel: 8 recycling unit locations 7839 | -5/Factory | Garrison activated, responded to threat 8022 | -5/Factory | Lost 6 parts (2p1n1u2w) 8024 | -5/Factory | First assault squad dispatched 8317 | -5/Factory | Released all parts (4) 8322 | -5/Factory | Core integrity fell below 50% 8330 | -5/Factory | Discovered new exit (range 5) 8333 | -5/Factory | Entered Upper Caves 8346 | -5/Upper Caves | Lost 11 parts (1p4n2u4w) 8357 | -5/Upper Caves | Entered an active Warlord outpost 8373 | -5/Upper Caves | Learned location of 1 exit from Factory 8373 | -5/Upper Caves | Learned 8 Research zone layouts 8409 | -5/Upper Caves | A Commander dispatched an escort 8478 | -5/Upper Caves | Core integrity fell below 20% 8577 | -5/Upper Caves | Released all parts (9) 8713 | -5/Upper Caves | Discovered new exit (range 7) 8717 | -5/Upper Caves | Entered another Upper Caves area 8772 | -5/Upper Caves | Learned location of Armory (-4) 8773 | -5/Upper Caves | Learned Factory non-interactive machine intel 8775 | -5/Upper Caves | Identified exit to Factory 8808 | -5/Upper Caves | Entered Factory 8808 | -4/Factory | Evolved 2 slots: Utility x2 8809 | -4/Factory | Identified exit to Research 8811 | -4/Factory | Loaded intel: 146 non-interactive machine locations 8873 | -4/Factory | Sucked down chute 8873 | -4/Factory | Entered Waste 8874 | -4/Waste | Met a frightened Derelict 8885 | -4/Waste | Spotted C-40 Crusher 8888 | -4/Waste | Spotted C-40 Crusher 8893 | -4/Waste | Spotted C-40 Crusher 8893 | -4/Waste | Spotted C-40 Crusher 8894 | -4/Waste | Spotted C-40 Crusher 8895 | -4/Waste | Spotted C-40 Crusher 8943 | -4/Waste | Discovered new exit (range 16) 8947 | -4/Waste | Identified exit to Factory 8947 | -4/Waste | Entered Factory 9104 | -4/Factory | Loaded intel: 8 recycling unit locations 9133 | -4/Factory | Spotted B-86 Titan 9168 | -4/Factory | Discovered new exit (range 15) 9175 | -4/Factory | Identified exit to Upper Caves 9213 | -4/Factory | Discovered new exit (range 22) 9219 | -4/Factory | Identified exit to Extension 9219 | -4/Factory | Entered Extension 9244 | -4/Extension | Lost 3 parts (1p1n1w) 9488 | -4/Extension | Rescued a captive Derelict 9493 | -4/Extension | Rescued a captive Derelict 9591 | -4/Extension | Lost 4 allies 9638 | -4/Extension | Build established: Scavenger-Skirmisher 9647 | -4/Extension | Rescued A7 9719 | -4/Extension | First assault squad dispatched 9922 | -4/Extension | Disrupted transfer network 9998 | -4/Extension | Lost 7 allies 10133 | -4/Extension | Spotted B-86 Titan 10144 | -4/Extension | Allies destroyed B-86 Titan 10150 | -4/Extension | Spotted B-86 Titan 10172 | -4/Extension | Allies destroyed B-86 Titan 10210 | -4/Extension | System corruption reached 10% 10433 | -4/Extension | Rescued a captive Derelict 10433 | -4/Extension | Rescued a captive Derelict 10518 | -4/Extension | Discovered exit to Research (range 10) 10519 | -4/Extension | Discovered new exit (range 6) 10540 | -4/Extension | Identified exit to Cetus 10568 | -4/Extension | Entered Cetus 10568 | -4/Cetus | Accompanied by 5 allies (A7) 10573 | -4/Cetus | Acquired a Cetus Manufacturing Module code from A7 10583 | -4/Cetus | Spotted Cetus Guard 10583 | -4/Cetus | Spotted Cetus Guard 10585 | -4/Cetus | Spotted Cetus Guard 10586 | -4/Cetus | Spotted Cetus Guard 10588 | -4/Cetus | Allies destroyed Cetus Guard 10592 | -4/Cetus | Allies destroyed Cetus Guard 10597 | -4/Cetus | Destroyed Cetus Guard 10600 | -4/Cetus | Allies destroyed Cetus Guard 10662 | -4/Cetus | Started Cetus Manufacturing Module 10687 | -4/Cetus | Manufactured an Enhanced Grunt 10712 | -4/Cetus | Manufactured an Enhanced Grunt 10737 | -4/Cetus | Manufactured an Enhanced Grunt 10746 | -4/Cetus | Escorted A7 to Cetus Mainframe 10762 | -4/Cetus | Manufactured an Enhanced Grunt 10787 | -4/Cetus | Manufactured an Enhanced Grunt 10807 | -4/Cetus | Discovered new exit (range 16) 10831 | -4/Cetus | Spotted Cetus Guard 10831 | -4/Cetus | Spotted Cetus Guard 10833 | -4/Cetus | Spotted Cetus Guard 10839 | -4/Cetus | Allies destroyed Cetus Guard 10846 | -4/Cetus | Allies destroyed Cetus Guard 10846 | -4/Cetus | Spotted Cetus Guard 10850 | -4/Cetus | Allies destroyed Cetus Guard 10857 | -4/Cetus | Allies destroyed Cetus Guard 10872 | -4/Cetus | Met Revision 17 10976 | -4/Cetus | Found a strange terminal 11015 | -4/Cetus | Identified exit to Archives 11030 | -4/Cetus | Entered Archives 11030 | -4/Archives | Accompanied by 9 allies (A7) 11035 | -4/Archives | Received a hacking code to weaken MAIN.C 11080 | -4/Archives | Discovered new exit (range 16) 11102 | -4/Archives | Identified exit to Hub_04(d) 11114 | -4/Archives | Entered Hub_04(d) 11114 | -4/Hub_04(d) | Accompanied by 8 allies 11177 | -4/Hub_04(d) | System corruption reached 30% 11189 | -4/Hub_04(d) | Lost 3 allies 11198 | -4/Hub_04(d) | Build established: Scavenger-Tank 11322 | -4/Hub_04(d) | Discovered exit to Research (range 7) 11343 | -4/Hub_04(d) | Entered Research 11343 | -3/Research | Evolved 2 slots: Utility x2 11365 | -3/Research | Loaded intel: 5 recycling unit locations 11368 | -3/Research | Lost 4 allies 11543 | -3/Research | Revision forces began assault on 0b10 11627 | -3/Research | Build established: Scavenger-Skirmisher 11987 | -3/Research | Build established: Scavenger-Tank 12043 | -3/Research | Research terminal network offline 12243 | -3/Research | Spotted Striker 12250 | -3/Research | Discovered new exit (range 16) 12265 | -3/Research | Identified exit to Research 12390 | -3/Research | Discovered exit to Research (range 7) 12445 | -3/Research | Spotted Striker 12458 | -3/Research | Spotted Striker 12760 | -3/Research | Spotted Executioner 12760 | -3/Research | Spotted Striker 12810 | -3/Research | Destroyed Striker 12867 | -3/Research | Spotted Striker 12871 | -3/Research | Spotted Executioner 12878 | -3/Research | Destroyed Executioner 12886 | -3/Research | Found Prototype Device 12889 | -3/Research | Entered another Research area 12889 | -2/Research | Evolved 2 slots: Utility x2 12941 | -2/Research | Identified Adv. Kinecellerator 12960 | -2/Research | Discovered new exit (range 7) 12967 | -2/Research | Identified exit to Access 13074 | -2/Research | Discovered exit to Access (range 15) 13139 | -2/Research | First assault squad dispatched 13188 | -2/Research | Garrison activated, responded to threat 13251 | -2/Research | Lost 3 parts (3w) 13257 | -2/Research | Destroyed 7 combat bots 13319 | -2/Research | Spotted B-90 Cyclops 13441 | -2/Research | Destroyed 7 combat bots 13468 | -2/Research | Lost 7 parts (2n3u2w) 13671 | -2/Research | Discovered new exit (range 13) 13671 | -2/Research | Spotted B-90 Cyclops 13688 | -2/Research | Identified exit to Quarantine 13689 | -2/Research | Entered Quarantine 13719 | -2/Quarantine | Found Alien Reactor 13802 | -2/Quarantine | Identified Matter Drive 13836 | -2/Quarantine | Lost 9 parts (1p2n4u2w) 13905 | -2/Quarantine | Found Alien Artifact 13960 | -2/Quarantine | Identified Subatomic Replicator 13960 | -2/Quarantine | Used Subatomic Replicator to replicate Damper Plating 14308 | -2/Quarantine | Found Alien Energy Cannon 14366 | -2/Quarantine | Build established: Scavenger-Skirmisher 14540 | -2/Quarantine | System corruption reached 10% 14662 | -2/Quarantine | Lost 4 parts (1p1n1u1w) 14936 | -2/Quarantine | Build established: Scavenger-Tank 14951 | -2/Quarantine | Found Alien Impact Weapon 15002 | -2/Quarantine | Ran an X-ray algorithm 15002 | -2/Quarantine | Central database locked down 15021 | -2/Quarantine | Identified Core Stripper 15045 | -2/Quarantine | Spotted Fortress 15061 | -2/Quarantine | Core integrity fell below 50% 15070 | -2/Quarantine | Destroyed Fortress 15074 | -2/Quarantine | Found Prototype Device 15074 | -2/Quarantine | Identified Exp. Force Field 15082 | -2/Quarantine | Found Prototype Protection 15082 | -2/Quarantine | Identified Centrium Heavy Armor Plating 15106 | -2/Quarantine | Found Prototype Reactor 15106 | -2/Quarantine | Identified Vortex Chain Reactor 15109 | -2/Quarantine | Found Vortex Chain Reactor 15114 | -2/Quarantine | Found Prototype Device 15114 | -2/Quarantine | Identified Thermal Barrier 15125 | -2/Quarantine | Found Prototype Device 15125 | -2/Quarantine | Identified Exp. EM Shield 15144 | -2/Quarantine | Found Hvy. Insulated Plating 15215 | -2/Quarantine | Discovered new exit (range 6) 15215 | -2/Quarantine | Discovered new exit (range 7) 15219 | -2/Quarantine | Identified exit to Protoforge 15220 | -2/Quarantine | Entered Protoforge 15238 | -2/Protoforge | Superfortress began startup sequence 15388 | -2/Protoforge | Spotted B-90 Cyclops 15544 | -2/Protoforge | Spotted Hotshot 15556 | -2/Protoforge | Spotted Hotshot 15556 | -2/Protoforge | Spotted Hotshot 15565 | -2/Protoforge | Destroyed Hotshot 15583 | -2/Protoforge | Destroyed Hotshot 15627 | -2/Protoforge | Spotted Hotshot 15628 | -2/Protoforge | Spotted Hotshot 15634 | -2/Protoforge | Destroyed Hotshot 15645 | -2/Protoforge | Destroyed Hotshot 15686 | -2/Protoforge | Spotted Hotshot 15688 | -2/Protoforge | Spotted Hotshot 15718 | -2/Protoforge | Destroyed Hotshot 15726 | -2/Protoforge | Destroyed Hotshot 15753 | -2/Protoforge | Discovered exit to Access (range 16) 15890 | -2/Protoforge | Spotted Immortal 15890 | -2/Protoforge | Spotted Immortal 15891 | -2/Protoforge | Spotted Immortal 15970 | -2/Protoforge | Spotted Hotshot 16126 | -2/Protoforge | Identified Core Cannon 16160 | -2/Protoforge | Spotted SKR-2 16160 | -2/Protoforge | Spotted SKR-2 16160 | -2/Protoforge | Spotted SKR-2 16178 | -2/Protoforge | Spotted AP7-3 16188 | -2/Protoforge | Core integrity fell below 20% 16190 | -2/Protoforge | Spotted AP7-3 16195 | -2/Protoforge | Released all parts (9) 16202 | -2/Protoforge | UFD initiated attack on Protoforge (Readiness: High) 16202 | -2/Protoforge | Loaded intel: 3 recycling unit locations 16202 | -2/Protoforge | Destroyed by SKR-2 with Enhanced Force Lance Last Messages --------------- | \\ ___// /_/ | | |___| / | \ | \ \_ / \___ \____ | |_____ \__\__|_ /__|__ \ \/ \/ \/ \/ \/ v3.71\/ UFD!MEMBER UFD!NETWORK<713> UFD!RESOURCES<116> 0bP!READINESS 0bP!SYS_TUNNEL 0bP!PRIORITY_MSG_OPTIMUS: We're in! With backing from all our 0b1 operations it won't be long before we can bring enough compute power to bear to take control of the Protoforge network. In the meantime our main assault force will arrive shortly with the aim of severing all physical connections to 0b10. Support from the recent Fedlink buildup is quite strong, it's only a matter of time before our new Protoforge is churning out 0bPrime tech! UFD!SANITIZING UFD!... Loading Protoforge recycling unit intel (x3)... 16202_ ALERT: Suspicious activity at Recycling Unit F003. Dispatching Investigation squad. Map ----- +----------------------------------------------------+ | """"""""""" "? " ?????????????????????????? | | """""""""" "" "" " "????????????????????????? | | """"""" "" "" ????????????????????????? | | "" "" "? """ ??????????????????????? | | "" "" "" ?????????????????????? | | " " " " "????????????????????? | | " """" """" " "? """ "??????????????????? | | "" """""""""" "" ??????????????????? | | """ " ?????????????????? | | """ " """ " "? """"??????????????????? | | " " "" "" " "" ?? ????????????????? | | """" " "" "" "? #???????????????? | | " """ " " " "?? #???????????????? | | !![" "" " #???????????????? | | " !]!]! " #???????????????? | | """""""""" !!! """ #???????????????? | | " """ #???????????????? | | """""""""" " " " """"???????????????????? | | ##?#################;;+#####?????????????????????? | | ???????????????#"" ""#?????????????????????? | | ?????????????###" "###???????????????????? | | ?????????????#"" K ""#???????????????????? | | ?????????????#"" K ""#???????????????????? | | ?????????????#"" ""#???????????????????? | | ?????????????#"Y KY"#???????????????????? | | ?????????????#"" @ ""#???????????????????? | | ?????????????#"" ""#???????????????????? | | ?????????????#"" ""#???????????????????? | | ??????????????##" "###???????????????????? | | ???????????????#"" ""#?????????????????????? | | ???????????????###"""Y"""###?????????????????????? | | ?????????????????#"""""""#???????????????????????? | | ?????????????????#########???????????????????????? | | ?????????????????????????????????????????????????? | | ?????????????????????????????????????????????????? | | ?????????????????????????????????????????????????? | | ?????????????????????????????????????????????????? | | ?????????????????????????????????????????????????? | | ?????????????????????????????????????????????????? | | ?????????????????????????????????????????????????? | | ?????????????????????????????????????????????????? | | ?????????????????????????????????????????????????? | | ?????????????????????????????????????????????????? | | ?????????????????????????????????????????????????? | | ?????????????????????????????????????????????????? | | ?????????????????????????????????????????????????? | | ?????????????????????????????????????????????????? | | ?????????????????????????????????????????????????? | | ?????????????????????????????????????????????????? | | ?????????????????????????????????????????????????? | +----------------------------------------------------+ Best States ------------- Heat Dissipation 165 Coolant Potential 180 Energy Generation 55 Energy Capacity 800 Matter Stores 550 Matter Capacity 550 Sight Range 22 Robot Scan Range 16 Terrain Scan Density 10 ECM Strength 2 Jamming Range 14 EM Shielding 2 Corruption Containment 20 Armor Coverage 1825 Resistance: KI 30 Resistance: TH 50 Resistance: EM 90 Propulsion Shielding 90 Weapon Shielding 90 Melee Speed Boost 30 Phase Shifting 15 Evasion (%) 97 Targeting Accuracy 10 Melee Accuracy 6 Core Analysis 6 Recoil Reduction 4 Kinecelleration 50 Defensive Hacking 12 Item Schematics ----------------- None Robot Schematics ------------------ None Fabricated ------------ Nothing Repaired ---------- Nothing Studied --------- Lgt. Antimatter Reactor | -3/Research | Hacked Biometal Leg | -2/Protoforge | Hacked Alien Tech Used ----------------- Matter Drive Subatomic Replicator Core Stripper Core Cannon Achievements -------------- None Challenges ------------ None Game ------ Seed ForceGhostDrillbomb Manual? 0 Play Time 04:34:13 Cumulative 195.7 hours Start 2026.01.18 @ 21:56:40 End 2026.01.19 @ 22:16:18 Sessions 5 Manual Loads 0 Difficulty Rogue Special Mode None Game No. 92 Rogue 92 Adventurer 0 Explorer 0 Win Type - Total 21 Types 10/0/7/1/0/1/1/0/0/1 Lore% 73 Gallery% 70 Achievement% 52 Wizard Run 0 Options --------- Layout 0 ASCII 0 Keyboard 1 Movement Numpad Keybinds 0 Fullscreen 1 Font 18/Smallcaps Map View 76x50 Zoom Use 0% Tactical HUD 1 Map Filters SATURATION(90)|BRIGHTNESS(110) Filters NONE Steam 0 RUN: c6ab5678-db8d-47d6-8702-80baab1d657f